[Event "Festival Groningen-A 2024"]
[Site "Groningen"]
[Date "2024.12.28"]
[Round "7.12"]
[White "Kollen, Zyon"]
[Black "Okuno, Rion"]
[Result "1-0"]
[ECO "B90"]
[WhiteElo "2344"]
[BlackElo "2027"]
[Annotator "TA"]
[PlyCount "97"]
[EventDate "2024.12.21"]
[EventType "swiss"]
[EventCountry "NED"]
[SourceTitle "playchess.com"]
[Source "ChessBase"]
[SourceQuality "1"]
[TimeControl "40/5400+30:1800+30"]

{[%evp 17,96,2,39,7,8,0,0,0,0,3,10,6,12,16,14,6,77,91,95,0,8,0,171,169,155,34,33,21,42,0,0,0,77,76,108,136,130,122,167,159,175,168,1047,1034,1145,1100,1137,971,1135,1091,1759,1661,1750,1641,2205,2205,2521,2261,29974,29977,29980,29981,29982,29983,29983,29984,29986,29987,29987,29988,29989,29990,29990,29990,29992,29992,29992,29993,29996,29997,29999]} 1. e4 {[%emt 0:00:03]} c5 {[%emt 0:00:05]} 2. Nf3 {[%emt 0:00:04]} d6 {[%emt 0:00:04]} 3. d4 {[%emt 0:00:04]} cxd4 {[%emt 0:00:04]} 4. Nxd4 {[%emt 0:00:04]} Nf6 {[%emt 0:00:05]} 5. Nc3 {[%emt 0:00:04]} a6 {[%emt 0:00:03]} 6. Be3 {[%emt 0:00:05]} e5 {[%emt 0:00:04]} 7. Nb3 {[%emt 0:00:06]} Be7 {[%emt 0:00:04]} 8. f3 {[%emt 0:00:05]} Be6 {[%emt 0:00:04]} 9. Qd2 {[%emt 0:00:05]} h5 {[%emt 0:00:03]} 10. a4 {[%emt 0:00:27]} Nbd7 {[%emt 0:02:40]} 11. Be2 {[%emt 0:00:19]} Qc7 {[%emt 0:00:28]} 12. O-O {[%emt 0:00:37] The position is equal.} O-O {[%emt 0:00:04]} 13. Rfd1 {[%emt 0:02:12]} Rfd8 {[%emt 0:00:35]} 14. Nd5 {[%emt 0:09:57]} Bxd5 {[%emt 0:09:23]} 15. exd5 {[%emt 0:00:04]} Nb6 {[%emt 0:09:54] Against c4} 16. Qa5 {[%emt 0:10:26]} Nfd7 {[%emt 0:18:00] [#]} (16... Qxc2 $11 17. Bxb6 Qxb3 (17... Qxe2 18. Bxd8 Bxd8 19. Qb4 $16) 18. Bxd8 Bxd8) 17. c4 $1 $16 {[%emt 0:02:56]} Nc5 {[%emt 0:05:18]} (17... g6 18. Bd3) 18. Qb4 {[%emt 0:12:00]} (18. Ra3 $16) 18... a5 $1 $11 {[%emt 0:11:31]} 19. Nxa5 {[%emt 0:07:47]} Nxd5 $2 {[%emt 0:03:24]} 20. cxd5 $18 {[%emt 0:01:03]} ({Don't take} 20. Rxd5 $6 Rxa5 21. Bd1 b6 $16) 20... Rxa5 {[%emt 0:01:22] [#]} 21. Qc4 {[%emt 0:11:35] White is more active.} (21. Qc3 $1 $16 {b4 is the strong threat.} Raa8 22. b4) 21... Qd7 $1 $14 {[%emt 0:03:34]} 22. b3 {[%emt 0:07:58]} Rc8 {[%emt 0:02:08]} 23. Rdc1 {[%emt 0:02:08] aiming for b4.} Raa8 $1 {[%emt 0:01:10]} 24. a5 {[%emt 0:06:33]} Na6 {[%emt 0:03:01]} (24... Qf5 $11 {keeps the balance.}) 25. Qb5 $36 {[%emt 0:04:46][%mdl 2048] Keeping Black busy. White leaves nothing to chance now.} Rxc1+ {[%emt 0:08:29]} 26. Rxc1 {[%emt 0:00:11]} Qxb5 {[%emt 0:00:39]} 27. Bxb5 {[%emt 0:00:02]} Nb4 {[%emt 0:00:22] [#]} 28. Bd2 $1 {[%emt 0:05:30]} Nxd5 {[%emt 0:00:45]} 29. a6 {[%emt 0:00:04]} Bd8 $2 {[%emt 0:17:21]} (29... bxa6 30. Bc6 Rc8 31. Bxd5 Rxc1+ 32. Bxc1 $18) (29... Rb8) 30. axb7 $18 {[%emt 0:00:14]} Bb6+ {[%emt 0:00:04]} 31. Kf1 {[%emt 0:00:13]} Rf8 {[%emt 0:00:03]} 32. Rc8 {[%emt 0:01:13]} Ba7 {[%emt 0:00:07]} 33. Ba5 {[%emt 0:06:06]} Bb8 {[%emt 0:00:54]} 34. Be8 {[%emt 0:01:00]} Ba7 {[%emt 0:00:40]} 35. Ra8 {[%emt 0:00:46]} (35. b8=R Bxb8 36. Rxb8 Nf6 $11) 35... Ne3+ {[%emt 0:04:19]} 36. Ke2 {[%emt 0:00:51]} Nf5 {[%emt 0:01:00]} 37. Rxa7 {[%emt 0:00:27]} Nd4+ {[%emt 0:00:16]} 38. Kf2 {[%emt 0:00:11] White mates.} Rxe8 {[%emt 0:00:50]} 39. Ra8 {[%emt 0:00:07]} Rxa8 {[%emt 0:00:10]} 40. bxa8=Q+ {[%emt 0:00:08]} Kh7 {[%emt 0:00:04]} 41. Qd5 {[%emt 0:30:28]} h4 {[%emt 0:30:10]} 42. Qxd6 {[%emt 0:00:34]} f6 {[%emt 0:00:03]} 43. Bc3 {[%emt 0:00:25]} Nf5 {[%emt 0:00:04]} 44. Qd3 {[%emt 0:00:11]} g6 {[%emt 0:00:04]} 45. Qd7+ {[%emt 0:00:29]} Kh6 {[%emt 0:00:03]} 46. Bd2+ {[%emt 0:00:07]} g5 {[%emt 0:00:06]} 47. Qxf5 {[%emt 0:00:08]} e4 {[%emt 0:00:07]} 48. Qxf6+ {[%emt 0:00:06]} Kh5 {[%emt 0:00:04]} 49. Qxg5# {[%emt 0:00:06] Weighted Error Value: White=0.17 (very precise) /Black=0.30.  Loses game:     	---       	Black=1      Mistake:       	White=2     	Black=3      Inaccurate:     	White=1     	Black=2      OK:         	White=7     	Black=7      Best:        	White=1     	---        Strong:       	White=1     	Black=3} 1-0

[Event "Festival Groningen-A 2024"]
[Site "Groningen"]
[Date "2024.12.28"]
[Round "7.13"]
[White "Labruyere, Roger"]
[Black "Duijker, Rick"]
[Result "1-0"]
[ECO "C18"]
[WhiteElo "2344"]
[BlackElo "2146"]
[Annotator "TA"]
[PlyCount "82"]
[EventDate "2024.12.21"]
[EventType "swiss"]
[EventCountry "NED"]
[SourceTitle "playchess.com"]
[Source "ChessBase"]
[SourceQuality "1"]
[TimeControl "40/5400+30:1800+30"]

{[%evp 15,82,22,26,-24,57,43,53,58,53,54,91,79,91,87,125,116,110,37,42,45,47,41,52,52,48,47,117,116,111,135,107,105,122,136,123,125,118,85,88,90,141,141,144,144,177,136,145,143,190,195,187,188,198,175,813,736,823,800,794,746,1683,1370,1492,1487,1530,1333,29980,29981,1879]} 1. e4 {[%emt 0:07:40]} e6 {[%emt 0:00:13]} 2. d4 {[%emt 0:00:09]} d5 {[%emt 0:00:05]} 3. Nc3 {[%emt 0:00:05]} Bb4 {[%emt 0:00:35]} 4. e5 {[%emt 0:01:43]} c5 {[%emt 0:00:21]} 5. a3 {[%emt 0:00:04]} Bxc3+ {[%emt 0:00:44]} 6. bxc3 {[%emt 0:00:03]} Ne7 {[%emt 0:00:24]} 7. Qg4 {[%emt 0:03:15]} O-O {[%emt 0:01:08]} 8. Bd3 {[%emt 0:04:59]} Nbc6 {[%emt 0:00:58]} 9. h4 {[%emt 0:01:54]} (9. dxc5 Nxe5 10. Bxh7+ Kxh7 $17) (9. Nf3 f5 10. Qg3) 9... c4 {[%emt 0:09:59] [#]} (9... f5 $11 10. Qf4 Qc7) 10. Bh6 $1 $14 {[%emt 0:02:32][%csl Gh6][%cal Rg4g7]} Ng6 $1 {[%emt 0:03:30]} 11. Bxg6 {[%emt 0:00:56]} fxg6 {[%emt 0:01:25]} 12. Be3 {[%emt 0:00:36]} Qe8 {[%emt 0:05:27]} 13. h5 {[%emt 0:01:45]} gxh5 {[%emt 0:02:08]} 14. Rxh5 {[%emt 0:00:31]} Ne7 {[%emt 0:03:03] Black is weak on the dark squares} 15. Ne2 {[%emt 0:09:37]} Rf5 {[%emt 0:12:35]} 16. Rh3 {[%emt 0:01:45]} ({White should try} 16. Rh4 $16) 16... Qg6 $1 {[%emt 0:01:34]} 17. Qxg6 $40 {[%emt 0:01:55][%mdl 128] White attacks.} (17. Qh4 {looks sharper.} Rf7 18. Kd2 Nf5 19. Qg5) 17... Nxg6 {[%emt 0:02:43]} 18. Kd2 {[%emt 0:00:06]} Bd7 {[%emt 0:02:32][%cal Bc8d7,Bd7e8,Be8g6][%mdl 32]} 19. Rah1 {[%emt 0:00:44]} h6 {[%emt 0:06:08]} 20. Ng3 {[%emt 0:04:57]} Rff8 {[%emt 0:01:55]} (20... Rf7 $1 $14) 21. Nh5 $16 {[%emt 0:03:48]} Be8 {[%emt 0:06:45] [#]} 22. Nxg7 $1 {[%emt 0:00:31][%mdl 512]} Kxg7 {[%emt 0:01:22]} 23. Bxh6+ {[%emt 0:00:04]} ({But not} 23. Rxh6 Rh8 24. Rxh8 Nxh8 $11) 23... Kg8 {[%emt 0:01:56]} 24. Bxf8 {[%emt 0:00:08]} Nxf8 {[%emt 0:02:36]} 25. Rh8+ {[%emt 0:00:55]} Kg7 {[%emt 0:01:03]} 26. f4 {[%emt 0:00:58] White is much more active.} Bg6 {[%emt 0:03:06]} 27. g4 {[%emt 0:00:25]} Re8 {[%emt 0:05:40] [#]} (27... Be4 $142) 28. R8h2 $1 {[%emt 0:00:42]} Nh7 {[%emt 0:11:12]} 29. Rf2 {[%emt 0:06:41]} Rf8 {[%emt 0:01:32]} 30. Rhf1 {[%emt 0:01:25]} Be4 {[%emt 0:00:43]} 31. Ke3 {[%emt 0:00:20]} Kg6 {[%emt 0:03:45]} (31... Rf7 $16) 32. Rb1 {[%emt 0:02:25]} Rf7 {[%emt 0:01:21]} 33. a4 {[%emt 0:01:33]} Nf8 {[%emt 0:03:01]} 34. f5+ {[%emt 0:00:20]} exf5 $2 {[%emt 0:03:36]} (34... Kg7 35. a5 (35. fxe6 Re7 $11) 35... exf5) 35. gxf5+ $18 {[%emt 0:00:05]} Rxf5 {[%emt 0:00:21]} 36. Rxf5 {[%emt 0:00:15]} Bxf5 {[%emt 0:02:04]} 37. Rxb7 {[%emt 0:00:05]} Bxc2 {[%emt 0:00:53]} 38. Rxa7 {[%emt 0:00:07] aiming for a5.} Ne6 {[%emt 0:00:31]} 39. a5 {[%emt 0:00:16] Threatening mate with a6.} Ba4 {[%emt 0:00:26]} 40. Re7 {[%emt 0:00:19]} Ng7 {[%emt 0:00:36]} 41. Rb7 {[%emt 0:30:13]} Nf5+ {[%emt 0:00:47]} 1-0

[Event "Festival Groningen-A 2024"]
[Site "Groningen"]
[Date "2024.12.28"]
[Round "7.14"]
[White "Albers, Sasa"]
[Black "Koster, Ramon"]
[Result "1/2-1/2"]
[ECO "B90"]
[WhiteElo "2268"]
[BlackElo "2330"]
[Annotator "TA"]
[PlyCount "42"]
[EventDate "2024.12.21"]
[EventType "swiss"]
[EventCountry "NED"]
[SourceTitle "playchess.com"]
[Source "ChessBase"]
[SourceQuality "1"]
[TimeControl "40/5400+30:1800+30"]

{[%evp 21,42,4,25,21,30,8,9,22,17,29,33,0,0,0,0,0,0,0,0,0,0,-10,0]} 1. e4 {[%emt 0:11:33]} c5 {[%emt 0:00:05]} 2. Nf3 {[%emt 0:00:08]} d6 {[%emt 0:00:03]} 3. d4 {[%emt 0:00:05]} cxd4 {[%emt 0:00:03]} 4. Nxd4 {[%emt 0:00:10]} Nf6 {[%emt 0:00:04]} 5. Nc3 {[%emt 0:00:08]} a6 {[%emt 0:00:05]} 6. Be3 {[%emt 0:00:11]} e5 {[%emt 0:00:12]} 7. Nb3 {[%emt 0:00:05]} Be7 {[%emt 0:00:15]} 8. f3 {[%emt 0:00:06][%cal Bf2f3,Bf3f4,Bf4f5][%mdl 32]} Be6 {[%emt 0:00:17]} 9. Qd2 {[%emt 0:00:08]} h5 {[%emt 0:00:37][%cal Bh7h5,Bh5h4,Bh4g3][%mdl 32]} 10. O-O-O {[%emt 0:00:06]} Nbd7 {[%emt 0:00:21]} 11. Kb1 {[%emt 0:00:07]} Rc8 {[%emt 0:01:27]} 12. f4 {[%emt 0:00:30]} b5 {[%emt 0:00:37]} 13. h3 {[%emt 0:00:15]} Qc7 {[%emt 0:00:26]} 14. Bd3 {[%emt 0:00:07][%cal Og2g4]} h4 {[%emt 0:00:16]} 15. Rhe1 {[%emt 0:00:05]} O-O {[%emt 0:00:36]} 16. f5 {[%emt 0:00:14]} Bc4 {[%emt 0:00:44]} 17. g4 {[%emt 0:00:05]} hxg3 {[%emt 0:01:12] and ...a5 should not be overlooked} 18. Rg1 {[%emt 0:01:01]} b4 {[%emt 0:02:18]} 19. Nd5 {[%emt 0:00:47]} Nxd5 {[%emt 0:00:32]} (19... Bxd5 20. exd5 a5 21. Rxg3 $16) 20. exd5 {[%emt 0:00:08] Hoping for Bxc4.} Bh4 {[%emt 0:01:09]} 21. Bg5 {[%emt 0:00:33]} Bxg5 {[%emt 0:00:13]} 1/2-1/2

[Event "Festival Groningen-A 2024"]
[Site "Groningen"]
[Date "2024.12.28"]
[Round "7.15"]
[White "Keuning, Selwin"]
[Black "Kazakouski, Valery"]
[Result "0-1"]
[ECO "B06"]
[WhiteElo "2180"]
[BlackElo "2567"]
[Annotator "TA"]
[PlyCount "146"]
[EventDate "2024.12.21"]
[EventType "swiss"]
[EventCountry "NED"]
[SourceTitle "playchess.com"]
[Source "ChessBase"]
[SourceQuality "1"]
[TimeControl "40/5400+30:1800+30"]

{[%evp 11,145,19,21,22,27,18,31,0,18,0,0,0,0,0,0,0,0,0,0,0,0,0,0,-6,-6,-6,-3,-1,0,0,0,0,2,-10,-4,-13,-13,-13,-7,-8,-5,-6,-5,-17,-7,-18,-2,-4,0,0,0,0,0,-14,0,-14,-4,-14,-4,-6,-6,-6,-6,-6,-6,-6,-6,-27,-21,-31,-20,-43,-43,-43,-12,-43,-43,-83,-43,-45,-43,-43,-16,-17,-14,-18,-22,-17,-5,-8,-4,-14,-14,-8,-3,-14,-7,-43,-42,-42,-2,-2,-3,-3,0,-27,-39,-127,-124,-126,-125,-110,-103,-185,-180,-238,-229,-1524,-1168,-2047,-2047,-29990,-9,-29991,-29972,-2127,-1868,-2880,-1803,-29989,-29990,-29995,-29994,-29998,-29999,-29999]} 1. e4 {[%emt 0:00:04]} c5 {[%emt 0:00:08]} 2. c3 {[%emt 0:00:10]} d5 {[%emt 0:00:08]} 3. exd5 {[%emt 0:00:09]} Qxd5 {[%emt 0:00:07]} 4. d4 {[%emt 0:00:19]} g6 {[%emt 0:00:09]} 5. Nf3 {[%emt 0:00:19]} Bg7 {[%emt 0:00:08]} 6. Na3 {[%emt 0:01:58]} cxd4 {[%emt 0:00:11]} 7. Bc4 {[%emt 0:00:06]} Qe4+ {[%emt 0:00:28] [#]} 8. Be3 $1 {[%emt 0:00:10][%cal Oc4f7]} Nh6 {[%emt 0:00:11]} (8... dxe3 $2 9. Bxf7+ Kxf7 (9... Kf8 $2 10. Qd8+ Kxf7 11. Ng5+ Kf6 12. Nxe4+ $18) 10. Ng5+ Ke8 11. Nxe4 $18) 9. cxd4 {[%emt 0:00:28]} O-O {[%emt 0:00:23]} 10. O-O {[%emt 0:00:35]} Bg4 {[%emt 0:18:41]} 11. Bxh6 {[%emt 0:07:54]} (11. Ng5 {feels hotter.} Qxe3 12. fxe3 Bxd1 13. Raxd1 Nc6 14. Bd5) 11... Bxh6 {[%emt 0:00:21]} 12. Re1 {[%emt 0:00:14][%cal Bf1e1,Be1e4,Be4e5,Be5b5,Bb5b7,Bb7d7][%mdl 32]} Bxf3 {[%emt 0:07:37]} 13. Rxe4 {[%emt 0:04:17]} Bxd1 {[%emt 0:00:09]} 14. Rxd1 {[%emt 0:00:04]} Bg5 {[%emt 0:00:10]} 15. Re5 {[%emt 0:11:50]} Bf6 {[%emt 0:01:40]} 16. Rb5 {[%emt 0:00:47]} Nc6 {[%emt 0:05:29][%cal Bb8c6,Bc6d4,Bd4f5,Bf5e3][%mdl 32]} 17. Rxb7 {[%emt 0:26:10]} Nxd4 {[%emt 0:01:48]} 18. b3 {[%emt 0:12:25]} Rfd8 {[%emt 0:07:21][%cal Od4f3] And now ...Nf3+! would win.} 19. Kf1 {[%emt 0:02:54]} Rd6 {[%emt 0:02:01]} 20. Nc2 {[%emt 0:15:31]} Nf5 {[%emt 0:12:03]} (20... Nxc2 $2 {is the wrong capture.} 21. Rxd6 exd6 22. Rxf7 $18) 21. Rd7 {[%emt 0:04:44]} a5 {[%emt 0:03:43]} 22. Ne3 {[%emt 0:06:28]} Rxd1+ {[%emt 0:02:09]} 23. Rxd1 {[%emt 0:00:23]} Nxe3+ {[%emt 0:02:39]} 24. fxe3 $11 {[%emt 0:00:01][%mdl 4096] Endgame KRB-KRB} Be5 {[%emt 0:00:14]} 25. h3 {[%emt 0:00:41]} Kg7 {[%emt 0:00:29]} 26. Ke2 {[%emt 0:00:24]} h5 {[%emt 0:01:02]} 27. Kf3 {[%emt 0:01:07]} Bd6 {[%emt 0:02:38]} 28. Ke4 {[%emt 0:01:23]} f5+ {[%emt 0:04:48]} 29. Kf3 {[%emt 0:01:18]} h4 {[%emt 0:02:26]} 30. Rd4 {[%emt 0:00:46]} Ra7 {[%emt 0:03:24]} 31. Ke2 {[%emt 0:01:41]} Bg3 {[%emt 0:00:41]} 32. Bb5 {[%emt 0:00:31]} Rb7 {[%emt 0:05:43]} 33. Bc6 {[%emt 0:00:22]} Rb6 {[%emt 0:00:50]} 34. Rc4 {[%emt 0:00:11]} e6 {[%emt 0:01:47]} 35. Bf3 {[%emt 0:00:50]} Kf7 {[%emt 0:01:15]} 36. e4 {[%emt 0:00:41]} Rb5 {[%emt 0:01:13]} 37. Kd3 {[%emt 0:00:29]} Kf6 {[%emt 0:01:05]} 38. Ke3 {[%emt 0:00:27]} Kg5 {[%emt 0:02:45]} 39. Ke2 {[%emt 0:00:33]} Bh2 {[%emt 0:01:38]} 40. Kf2 {[%emt 0:00:25]} Bb8 {[%emt 0:03:59]} 41. Ke3 {[%emt 0:08:03]} Ba7+ {[%emt 0:00:39]} 42. Ke2 {[%emt 0:00:18]} e5 {[%emt 0:02:30]} 43. Kd3 {[%emt 0:06:12]} Bd4 {[%emt 0:01:48]} 44. Ra4 {[%emt 0:03:10]} Bf2 {[%emt 0:08:54]} 45. Ke2 {[%emt 0:04:39]} Bc5 {[%emt 0:05:09]} 46. Rc4 {[%emt 0:00:17] Hoping for a4.} Bb4 {[%emt 0:02:13]} 47. Ke3 {[%emt 0:02:46]} Rb8 {[%emt 0:01:06]} 48. Be2 $1 {[%emt 0:04:42]} Rd8 {[%emt 0:01:22]} 49. Bd3 {[%emt 0:00:13]} Rd7 {[%emt 0:01:33]} 50. Rc2 {[%emt 0:01:09]} Be7 {[%emt 0:00:33]} 51. Rc1 {[%emt 0:02:23]} Rd4 {[%emt 0:03:43]} 52. Rc4 $1 {[%emt 0:00:34]} Rd6 {[%emt 0:00:14]} 53. Rc1 {[%emt 0:00:36]} Bd8 {[%emt 0:01:32]} 54. Rf1 {[%emt 0:01:34][%cal Re4f5]} Bb6+ {[%emt 0:01:01]} 55. Ke2 {[%emt 0:00:04][%cal Re4f5]} Rf6 {[%emt 0:00:39]} 56. Bc2 {[%emt 0:01:04]} Bd4 {[%emt 0:01:40]} 57. Bd3 {[%emt 0:00:36]} Rf7 {[%emt 0:00:36]} 58. Bc4 {[%emt 0:00:45]} Rc7 {[%emt 0:01:08]} 59. a4 {[%emt 0:00:29]} (59. Bd3 $15) 59... fxe4 $17 {[%emt 0:01:34] Black is more active.} 60. Kd2 {[%emt 0:00:30]} Rd7 {[%emt 0:00:18]} 61. Rf7 {[%emt 0:00:08]} Rd6 {[%emt 0:00:09]} 62. Bb5 {[%emt 0:00:36]} (62. Ke2 $17) 62... Bc5+ {[%emt 0:00:48]} 63. Ke2 {[%emt 0:00:21] [#]} (63. Ke1 {was necessary.}) 63... e3 $1 $19 {[%emt 0:00:57]} 64. Bd3 $2 {[%emt 0:00:35] [#]} (64. Rf1) 64... e4 $1 {[%emt 0:00:21][%mdl 512]} 65. Bxe4 {[%emt 0:00:11]} (65. Ba6 Rxa6) 65... Rd2+ {[%emt 0:00:08]} 66. Kf1 {[%emt 0:01:07]} e2+ {[%emt 0:09:14]} 67. Ke1 Bb4 {[%emt 0:00:00]} 68. Rb7 {[%emt 0:00:55]} Rb2+ {[%emt 0:00:00]} 69. Rxb4 {[%emt 0:00:10]} axb4 {[%emt 0:00:00]} 70. a5 {[%emt 0:00:31]} Kf4 {[%emt 0:00:00]} 71. a6 {[%emt 0:00:14]} Kxe4 {[%emt 0:00:00]} 72. a7 {[%emt 0:00:03]} Ke3 {[%emt 0:00:00][%cal Rb2b1]} 73. a8=Q {[%emt 0:00:04]} Rb1# {[%emt 0:00:00]} 0-1

[Event "Festival Groningen-A 2024"]
[Site "Groningen"]
[Date "2024.12.28"]
[Round "7.16"]
[White "De Boer, Bas"]
[Black "Van der Hagen, Loek"]
[Result "1/2-1/2"]
[ECO "A41"]
[WhiteElo "2157"]
[BlackElo "2315"]
[Annotator "RC"]
[PlyCount "70"]
[EventDate "2024.12.21"]
[EventType "swiss"]
[EventCountry "NED"]
[SourceTitle "playchess.com"]
[Source "ChessBase"]
[SourceQuality "1"]
[TimeControl "40/5400+30:1800+30"]

1. Nf3 {[%emt 0:00:03]} g6 {[%emt 0:00:47]} 2. e4 {[%emt 0:01:16]} Bg7 {[%emt 0:01:09]} 3. c4 {[%emt 0:00:05]} d6 {[%emt 0:00:19]} 4. d4 {[%emt 0:00:49]} Bg4 {[%emt 0:00:17]} 5. Be2 {[%emt 0:01:25]} e5 {[%emt 0:02:16]} 6. Be3 {[%emt 0:04:20]} Nc6 {[%emt 0:02:32]} 7. d5 {[%emt 0:00:56]} Bxf3 {[%emt 0:06:48]} 8. Bxf3 {[%emt 0:00:25]} Nd4 {[%emt 0:00:11]} 9. h4 {[%emt 0:00:26]} Nxf3+ {[%emt 0:02:55]} 10. Qxf3 {[%emt 0:00:37]} h5 {[%emt 0:00:35]} 11. Nc3 {[%emt 0:00:50]} Bh6 {[%emt 0:00:08]} 12. O-O-O {[%emt 0:01:01]} Bxe3+ {[%emt 0:01:57]} 13. Qxe3 {[%emt 0:00:13]} Nh6 {[%emt 0:02:52]} 14. Kb1 {[%emt 0:03:50]} a6 {[%emt 0:03:47]} 15. f3 {[%emt 0:04:20]} Kf8 {[%emt 0:03:36]} 16. Rc1 {[%emt 0:06:58]} Qe7 {[%emt 0:02:10]} 17. Nd1 {[%emt 0:00:40]} b6 {[%emt 0:17:25]} 18. Nf2 {[%emt 0:00:47]} Kg7 {[%emt 0:12:10]} 19. Nd3 {[%emt 0:04:37]} a5 {[%emt 0:06:24]} 20. a4 {[%emt 0:00:21]} f5 {[%emt 0:04:53]} 21. b3 {[%emt 0:02:15]} fxe4 {[%emt 0:02:38]} 22. Qxe4 {[%emt 0:04:36]} Nf5 {[%emt 0:00:12]} 23. Rh3 {[%emt 0:00:28]} Raf8 {[%emt 0:02:41]} 24. Rg1 {[%emt 0:10:41]} Nd4 {[%emt 0:02:29]} 25. Kb2 {[%emt 0:00:22]} Rf5 {[%emt 0:06:02]} 26. Qe1 {[%emt 0:12:52]} Qf6 {[%emt 0:03:57]} 27. Nf2 {[%emt 0:00:37]} Rf4 {[%emt 0:03:11]} 28. Ne4 {[%emt 0:00:30]} Qf5 {[%emt 0:00:18]} 29. Qe3 {[%emt 0:05:23]} Rf8 {[%emt 0:01:07]} 30. Re1 {[%emt 0:00:36]} Rf7 {[%emt 0:05:05]} 31. Qc3 {[%emt 0:05:29]} Rf8 {[%emt 0:01:28]} 32. Re3 {[%emt 0:07:00]} Kh6 {[%emt 0:01:15]} 33. Re1 {[%emt 0:01:42]} Kg7 {[%emt 0:01:07]} 34. Re3 {[%emt 0:01:33]} Kh6 {[%emt 0:00:12]} 35. Re1 {[%emt 0:00:26]} Kg7 {[%emt 0:00:26]} 1/2-1/2

[Event "Festival Groningen-A 2024"]
[Site "Groningen"]
[Date "2024.12.28"]
[Round "7.17"]
[White "Avetisyan, Ani"]
[Black "De Jong, Migchiel"]
[Result "0-1"]
[ECO "B08"]
[WhiteElo "2059"]
[BlackElo "2275"]
[Annotator "RC"]
[PlyCount "132"]
[EventDate "2024.12.21"]
[EventType "swiss"]
[EventCountry "NED"]
[SourceTitle "playchess.com"]
[Source "ChessBase"]
[SourceQuality "1"]
[TimeControl "40/5400+30:1800+30"]

1. d4 {[%emt 0:00:03]} d6 {[%emt 0:00:36]} 2. e4 {[%emt 0:00:41]} Nf6 {[%emt 0:00:11]} 3. Nc3 {[%emt 0:02:12]} e5 {[%emt 0:01:52]} 4. Nf3 {[%emt 0:02:49]} Nbd7 {[%emt 0:00:57]} 5. Be2 {[%emt 0:01:52]} g6 {[%emt 0:06:26]} 6. h3 {[%emt 0:03:26]} Bg7 {[%emt 0:01:32]} 7. Be3 {[%emt 0:01:50]} O-O {[%emt 0:00:17]} 8. O-O {[%emt 0:11:51]} c6 {[%emt 0:01:38]} 9. a4 {[%emt 0:03:11]} Re8 {[%emt 0:05:37]} 10. dxe5 {[%emt 0:14:16]} dxe5 {[%emt 0:00:26]} 11. Bc4 {[%emt 0:00:52]} Qe7 {[%emt 0:01:01]} 12. Qe2 {[%emt 0:04:22]} b6 {[%emt 0:12:36]} 13. Rad1 {[%emt 0:04:58]} a6 {[%emt 0:06:39]} 14. Bb3 {[%emt 0:11:04]} Nc5 {[%emt 0:04:03]} 15. Bxc5 {[%emt 0:01:32]} Qxc5 {[%emt 0:00:13]} 16. Qe3 {[%emt 0:06:29]} Bf8 {[%emt 0:05:31]} 17. Ng5 {[%emt 0:02:00]} Ra7 {[%emt 0:00:48]} 18. Kh1 {[%emt 0:03:35]} h6 {[%emt 0:01:33]} 19. Nf3 {[%emt 0:01:07]} Nh5 {[%emt 0:01:40]} 20. Qxc5 {[%emt 0:02:18]} Bxc5 {[%emt 0:00:09]} 21. Nxe5 {[%emt 0:00:46]} Rxe5 {[%emt 0:11:40]} 22. Rd8+ {[%emt 0:00:08]} Kg7 {[%emt 0:00:45]} 23. Rxc8 {[%emt 0:00:05]} Nf6 {[%emt 0:02:36]} 24. f3 {[%emt 0:03:09]} Nh5 {[%emt 0:07:03]} 25. Rd1 {[%emt 0:01:08]} Rd7 {[%emt 0:01:43]} 26. g4 {[%emt 0:03:33]} Rxd1+ {[%emt 0:00:49]} 27. Nxd1 {[%emt 0:00:02]} Nf4 {[%emt 0:00:18]} 28. Rxc6 {[%emt 0:00:16]} Nxh3 {[%emt 0:00:34]} 29. Bd5 {[%emt 0:01:02]} Nf4 {[%emt 0:02:56]} 30. Nc3 {[%emt 0:02:02]} h5 {[%emt 0:04:23]} 31. a5 {[%emt 0:01:30]} hxg4 {[%emt 0:00:16]} 32. fxg4 {[%emt 0:00:16]} Re8 {[%emt 0:00:23]} 33. Rxc5 {[%emt 0:02:52]} bxc5 {[%emt 0:01:19]} 34. Bb7 {[%emt 0:02:41]} Rb8 {[%emt 0:00:24]} 35. Bxa6 {[%emt 0:00:09]} Ra8 {[%emt 0:02:29]} 36. Bc4 {[%emt 0:01:44]} Rxa5 {[%emt 0:00:06]} 37. Kh2 {[%emt 0:02:11]} Ra1 {[%emt 0:00:58]} 38. Kg3 {[%emt 0:00:50]} g5 {[%emt 0:00:29]} 39. Nb5 {[%emt 0:01:31]} Rc1 {[%emt 0:01:31]} 40. c3 {[%emt 0:01:37]} Rc2 {[%emt 0:00:23]} 41. Nd6 {[%emt 0:30:35]} Ne6 {[%emt 0:32:29]} 42. e5 {[%emt 0:00:00]} Rxb2 {[%emt 0:00:00]} 43. Ne4 {[%emt 0:00:00]} Rc2 {[%emt 0:00:00]} 44. Bxe6 {[%emt 0:00:00]} fxe6 {[%emt 0:00:00]} 45. Kf3 {[%emt 0:00:00]} Kg6 {[%emt 0:00:00]} 46. Ke3 {[%emt 0:00:00]} c4 {[%emt 0:00:00]} 47. Kd4 {[%emt 0:00:27]} Re2 {[%emt 0:00:00]} 48. Nf6 {[%emt 0:00:30]} Re1 {[%emt 0:00:00]} 49. Ne4 {[%emt 0:02:33]} Rd1+ {[%emt 0:00:00]} 50. Kxc4 {[%emt 0:00:58]} Rd5 {[%emt 0:00:00]} 51. Nc5 {[%emt 0:01:19]} Rxe5 {[%emt 0:00:00]} 52. Kd4 {[%emt 0:00:38]} Re2 {[%emt 0:00:00]} 53. Ne4 {[%emt 0:00:56]} Rg2 {[%emt 0:00:00]} 54. Ke5 {[%emt 0:00:19]} Rxg4 {[%emt 0:00:00]} 55. c4 {[%emt 0:00:30]} Rxe4+ {[%emt 0:00:00]} 56. Kxe4 {[%emt 0:00:04]} Kf6 {[%emt 0:00:00]} 57. Kd4 {[%emt 0:00:30]} Ke7 {[%emt 0:00:00]} 58. c5 {[%emt 0:00:27]} Kd7 {[%emt 0:00:00]} 59. Ke5 {[%emt 0:00:41]} Kc6 {[%emt 0:00:00]} 60. Kd4 {[%emt 0:00:29]} g4 {[%emt 0:00:00]} 61. Ke4 {[%emt 0:00:04]} e5 {[%emt 0:00:00]} 62. Ke3 {[%emt 0:00:29]} Kxc5 {[%emt 0:00:00]} 63. Ke4 {[%emt 0:00:06]} Kd6 {[%emt 0:00:00]} 64. Ke3 {[%emt 0:00:07]} Kd5 {[%emt 0:00:00]} 65. Kf2 {[%emt 0:00:09]} Ke4 {[%emt 0:00:00]} 66. Kg3 {[%emt 0:00:15]} Kd3 {[%emt 0:00:00]} 0-1